bitfinex/quotes_SOLUSD_20250619
["timestamp","ask_amount","ask_price","bid_price","bid_amount"]
[1750343639932,11.32384496,144.01,143.97,24.31062026]
[1750343640538,11.32384496,144.01,143.97,35.63446522]
[1750343640835,11.32384496,144.0,143.97,24.31062026]
[1750343641414,11.32384496,144.01,143.97,24.31062026]
[1750343641827,11.32384496,144.01,143.97,35.63446522]
[1750343642544,11.32384496,144.01,143.97,24.31062026]
[1750343642709,11.32384496,144.01,143.97,35.63446522]
[1750343643141,11.32384496,144.0,143.97,24.31062026]
[1750343643750,27.22680468,144.04,143.97,6.9458915]
[1750343644048,11.32384496,144.0,143.97,6.9458915]
[1750343644634,20.28414886,144.04,143.97,6.9458915]
[1750343644838,20.28414886,144.04,143.98,11.32384496]
[1750343645140,11.32384496,144.01,143.97,24.31062026]
[1750343645438,11.32384496,144.01,143.97,35.63446522]
[1750343645729,11.32384496,143.99,143.97,24.31062026]
[1750343645908,11.32384496,144.0,143.97,24.31062026]
[1750343647037,11.32384496,144.0,143.97,6.9458915]
[1750343647835,11.32384496,144.01,143.97,35.63446522]
[1750343648023,20.28414886,144.04,143.97,24.31062026]
[1750343648336,11.32384496,144.01,143.97,35.63446522]
[1750343648839,11.32384496,144.01,143.97,24.31062026]
[1750343649021,20.28414886,144.04,143.97,28.68857372]
[1750343649331,11.32384496,144.01,143.97,28.68857372]
[1750343649531,11.32384496,144.01,143.97,17.36472876]
[1750343649739,11.32384496,144.01,143.97,28.68857372]
[1750343650534,11.32384496,144.02,143.97,28.68857372]
[1750343650836,20.28414886,144.04,143.97,17.36472876]
[1750343650837,11.32384496,144.01,143.97,17.36472876]
[1750343651136,11.32384496,144.0,143.97,24.31062026]
[1750343651740,11.32384496,143.98,143.95,1.4678937]
[1750343652039,18.64964886,143.98,143.95,1.4678937]
[1750343652339,11.32384496,143.96,143.95,1.4678937]
[1750343653339,11.32384496,143.96,143.95,8.41475024]
[1750343653924,20.23624886,143.98,143.95,8.41475024]
[1750343654412,11.32384496,143.96,143.95,8.41475024]
[1750343654922,20.23624886,143.98,143.95,8.41475024]
[1750343655328,11.32384496,143.97,143.95,8.41475024]
[1750343655735,18.64964886,143.98,143.95,8.41475024]
[1750343656235,11.32384496,143.97,143.95,8.41475024]
[1750343657945,18.64964886,143.98,143.95,8.41475024]
[1750343658241,11.32384496,143.97,143.95,8.41475024]
[1750343658635,29.97349382,143.98,143.95,8.41475024]
[1750343659219,37.32384496,143.99,143.95,37.10573656]
[1750343659421,11.32384496,144.0,143.95,37.10573656]
[1750343659644,18.64964886,144.0,143.95,37.10573656]
[1750343659944,29.97349382,144.0,143.95,37.10573656]
[1750343660132,11.32384496,143.99,143.95,37.10573656]
[1750343661446,18.64964886,144.01,143.97,11.32384496]
[1750343661667,11.32384496,144.03,143.99,11.32384496]
[1750343661831,11.32384496,144.03,143.95,25.7818916]
[1750343662036,11.32384496,144.02,143.98,11.32384496]
[1750343662249,11.32384496,144.01,143.97,28.68791197]
[1750343662656,11.32384496,144.0,143.97,17.36406701]
[1750343664438,11.32384496,144.01,143.97,35.63380347]
[1750343665334,73.08964886,144.04,143.95,1.4678937]
[1750343665335,26.0,143.98,143.95,1.4678937]
[1750343665525,11.32384496,143.97,143.95,1.4678937]
[1750343666237,20.17384886,143.99,143.95,8.41469425]
[1750343666432,29.97349382,143.99,143.95,19.73853921]
[1750343666761,6.4641,144.0,143.95,37.10568057]
[1750343667075,11.32384496,144.01,143.97,11.32384496]
[1750343667254,11.32384496,144.01,143.96,11.32384496]
[1750343667558,11.32384496,144.01,143.95,25.78183561]
[1750343667858,11.32384496,144.01,143.97,11.32384496]
[1750343668541,44.64964886,144.02,143.98,6.94540908]
[1750343668907,11.32384496,144.01,143.98,6.94540908]
[1750343670471,11.32384496,143.99,143.96,6.94637399]
[1750343670838,11.32384496,144.0,143.96,35.63615393]
[1750343671450,11.32384496,144.0,143.96,24.31230897]
[1750343671650,11.32384496,144.0,143.96,35.63615393]
[1750343672272,4.81847411,144.01,143.96,24.31230897]
[1750343672471,11.32384496,143.99,143.96,24.31230897]
[1750343673488,11.32384496,144.0,143.96,35.63615393]
[1750343673862,11.32384496,144.0,143.96,24.31230897]
[1750343674053,11.32384496,144.0,143.96,35.63615393]
[1750343675364,4.81847411,144.01,143.96,35.63615393]
[1750343675566,11.32384496,144.0,143.96,35.63615393]
[1750343677001,11.32384496,144.0,143.96,24.31230897]
[1750343677160,11.32384496,144.0,143.96,35.63615393]
[1750343677473,16.16975168,144.0,143.96,35.63615393]
[1750343677669,11.32384496,143.99,143.96,24.31230897]
[1750343677876,4.84590672,144.0,143.96,24.31230897]
[1750343678065,4.84590672,144.01,143.96,24.31230897]
[1750343678268,11.32384496,143.99,143.96,24.31230897]
[1750343678459,4.84590672,144.01,143.96,24.31230897]
[1750343678783,11.32384496,143.99,143.96,24.31230897]
[1750343678986,11.32384496,143.98,143.96,6.94637399]
[1750343679180,18.64964886,143.98,143.96,6.94637399]
[1750343679477,11.32384496,143.97,143.96,6.94637399]
[1750343680775,11.32384496,143.97,143.95,8.41452272]
[1750343682356,16.17128232,143.97,143.95,8.41452272]
[1750343682560,11.32384496,143.97,143.95,8.41452272]
[1750343683169,16.17095707,143.97,143.95,8.41452272]
[1750343683467,16.17153711,143.97,143.95,8.41452272]
[1750343683984,11.32384496,143.96,143.95,1.4678937]
[1750343684280,11.32384496,143.96,143.95,8.41475024]
[1750343692168,18.64964886,143.98,143.95,8.41475024]
[1750343692365,16.17750218,143.97,143.95,8.41475024]
[1750343692698,11.32384496,143.97,143.95,8.41475024]
[1750343692872,11.32384496,143.96,143.95,8.41475024]
[1750343693067,11.32384496,143.96,143.95,1.4678937]
[1750343693678,16.17727649,143.96,143.95,1.4678937]
[1750343693878,11.32384496,143.96,143.95,1.4678937]
[1750343694201,4.85343153,143.96,143.95,1.4678937]
[1750343694390,16.17727649,143.96,143.95,1.4678937]
[1750343695394,34.82692535,143.96,143.95,1.4678937]
[1750343696714,34.8307015,143.96,143.95,1.4678937]
[1750343697383,16.18105264,143.96,143.95,8.41475024]
[1750343700504,4.85720768,143.96,143.95,8.41475024]
[1750343700704,11.32384496,143.97,143.95,8.41475024]
[1750343702519,4.90998075,143.96,143.95,8.41475024]
[1750343703810,16.23382571,143.96,143.95,8.41475024]
[1750343704185,16.23382571,143.96,143.95,1.4678937]
[1750343704811,16.23382571,143.96,143.95,8.41475024]
[1750343705194,16.23382571,143.96,143.95,1.4678937]
[1750343706207,34.88347457,143.96,143.95,1.4678937]
[1750343706450,47.00347997,143.96,143.95,1.4678937]
[1750343706588,40.05710598,143.96,143.95,1.4678937]
[1750343706790,28.73326102,143.96,143.95,1.4678937]
[1750343707013,40.05710598,143.96,143.95,1.4678937]
[1750343707406,47.00347997,143.96,143.95,1.4678937]
[1750343707605,40.05710598,143.96,143.95,1.4678937]
[1750343707807,28.73326102,143.96,143.95,1.4678937]
[1750343707998,40.05710598,143.96,143.95,1.4678937]
[1750343711313,47.00347997,143.96,143.95,1.4678937]
[1750343711624,40.05710598,143.96,143.95,1.4678937]
[1750343713100,28.73326102,143.96,143.95,1.4678937]
[1750343713420,40.05710598,143.96,143.95,1.4678937]
[1750343716311,40.06220467,143.96,143.95,1.4678937]
[1750343719608,47.00857866,143.96,143.95,1.4678937]
[1750343720643,40.06220467,143.96,143.95,1.4678937]
[1750343720827,47.00857866,143.96,143.95,1.4678937]
[1750343721450,35.6847337,143.96,143.95,1.4678937]
[1750343721605,47.00857866,143.96,143.95,1.4678937]
[1750343722037,47.00948557,143.96,143.95,1.4678937]
[1750343722548,40.06311158,143.96,143.95,1.4678937]
[1750343722700,47.00948557,143.96,143.95,1.4678937]
[1750343724013,44.64964886,143.93,143.92,4.06467545]
[1750343724333,105.78695654,143.93,143.92,4.06467545]
[1750343724539,112.73477839,143.93,143.92,4.06467545]
[1750343727745,112.73038762,143.93,143.92,4.06467545]
[1750343728717,66.05872081,143.93,143.92,4.06467545]
[1750343730422,34.8850894,143.93,143.92,4.06467545]
[1750343730636,34.88463868,143.93,143.92,4.06467545]
[1750343732343,23.56079372,143.93,143.92,4.06467545]
[1750343732515,34.88463868,143.93,143.92,4.06467545]
[1750343733245,23.56079372,143.93,143.92,4.06467545]
[1750343733443,34.88463868,143.93,143.92,4.06467545]
[1750343734022,40.0489306,143.93,143.92,4.06467545]
[1750343734221,46.99675245,143.93,143.92,4.06467545]
[1750343734418,40.0489306,143.93,143.92,4.06467545]
[1750343736131,34.88463868,143.93,143.92,4.06467545]
[1750343736463,34.89482799,143.93,143.92,4.06467545]
[1750343736840,40.06211726,143.93,143.92,4.06467545]
[1750343738556,28.7382723,143.93,143.92,4.06467545]
[1750343738931,40.06211726,143.93,143.92,4.06467545]
[1750343739339,28.7382723,143.93,143.92,4.06467545]
[1750343739553,40.06211726,143.93,143.92,4.06467545]
[1750343739855,47.00993911,143.93,143.92,4.06467545]
[1750343740047,40.06211726,143.93,143.92,4.06467545]
[1750343740747,66.06211726,143.93,143.92,4.06467545]
[1750343741152,36.08862344,143.93,143.92,4.06467545]
[1750343741477,26.0,143.9,143.88,8.50444365]
[1750343741643,63.71482799,143.89,143.88,8.50444365]
[1750343741827,68.88211726,143.89,143.88,8.50444365]
[1750343742029,75.82529261,143.89,143.88,8.50444365]
[1750343742535,74.03522184,143.89,143.88,8.50444365]
[1750343742943,62.71137688,143.89,143.88,8.50444365]
[1750343743160,76.61490725,143.89,143.88,8.50444365]
[1750343743532,74.03522184,143.89,143.88,8.50444365]
[1750343743741,76.61313632,143.89,143.88,8.50444365]
[1750343744028,33.89137688,143.89,143.88,8.50444365]
[1750343744233,40.04793257,143.89,143.88,8.50444365]
[1750343744429,21.39828371,143.89,143.88,8.50444365]
[1750343744663,37.32384496,143.89,143.88,8.50444365]
[1750343744839,47.3929286,143.89,143.88,8.50444365]
[1750343745328,36.06908364,143.89,143.88,8.50444365]
[1750343745525,47.38706137,143.89,143.88,8.50444365]
[1750343747342,36.06321641,143.89,143.88,15.45467995]
[1750343747547,11.32384496,143.9,143.88,15.45467995]
[1750343747767,31.15866191,143.91,143.88,15.45467995]
[1750343747957,37.32384496,143.91,143.88,15.45467995]
[1750343748533,11.32384496,143.9,143.88,15.45467995]
[1750343749262,5.15904691,143.9,143.88,15.45467995]
[1750343749435,11.32384496,143.89,143.88,15.45467995]
[1750343750154,11.32384496,143.89,143.88,8.50444365]
[1750343750661,21.40752911,143.89,143.88,8.50444365]
[1750343751851,40.05717797,143.89,143.88,8.50444365]
[1750343752771,21.40752911,143.89,143.88,8.50444365]
[1750343752935,16.48253973,143.89,143.88,8.50444365]
[1750343753140,21.40752911,143.89,143.88,8.50444365]
[1750343753870,21.40199704,143.89,143.88,8.50444365]
[1750343754261,21.40199704,143.89,143.88,15.45467995]
[1750343755244,10.07815208,143.89,143.88,15.45467995]
[1750343755444,26.0,143.89,143.88,15.45467995]
[1750343757783,16.488309,143.91,143.88,15.45467995]
[1750343757952,10.08618554,143.9,143.88,15.45467995]
[1750343758151,5.16334494,143.9,143.88,44.15411568]
[1750343758467,26.0,143.91,143.88,44.15411568]
[1750343758967,26.0,143.91,143.88,32.83027072]
[1750343760598,37.32384496,143.91,143.88,32.83027072]
[1750343761181,11.32384496,143.9,143.88,32.83027072]
[1750343761581,11.32384496,143.89,143.88,15.45467995]
[1750343761783,21.40814448,143.89,143.88,15.45467995]
[1750343762405,16.48958912,143.89,143.88,15.45467995]
[1750343762900,16.48958912,143.89,143.88,8.50444365]
[1750343762901,21.41191073,143.89,143.88,8.50444365]
[1750343763284,21.41191073,143.89,143.88,15.45467995]
[1750343765287,16.24616657,143.89,143.88,15.45467995]
[1750343765601,21.41241961,143.89,143.88,15.45467995]
[1750343767600,21.41241961,143.89,143.88,8.50444365]
[1750343767774,10.08857465,143.89,143.88,15.45467995]
[1750343767978,21.41241961,143.89,143.88,8.50444365]
[1750343768174,29.16778182,143.89,143.88,8.50444365]
[1750343768387,23.99630562,143.89,143.88,8.50444365]
[1750343768691,26.58389581,143.89,143.88,8.50444365]
[1750343768905,21.41241961,143.89,143.88,8.50444365]
[1750343769102,26.58389581,143.89,143.88,8.50444365]
[1750343769304,21.41241961,143.89,143.88,8.50444365]
[1750343769503,26.58389581,143.89,143.88,8.50444365]
[1750343769807,21.41241961,143.89,143.88,8.50444365]
[1750343770201,21.41688637,143.89,143.88,8.50444365]
[1750343770410,26.5870827,143.89,143.88,8.50444365]
[1750343770606,21.41688637,143.89,143.88,8.50444365]
[1750343770810,29.1727212,143.89,143.88,8.50444365]
[1750343770984,21.41688637,143.89,143.88,8.50444365]
[1750343771306,26.5870827,143.89,143.88,15.45467995]
[1750343771510,21.41688637,143.89,143.88,15.45467995]
[1750343772284,10.09304141,143.89,143.88,15.45467995]
[1750343772621,21.41688637,143.89,143.88,8.50444365]
[1750343772799,29.17357015,143.89,143.88,8.50444365]
[1750343772997,24.00347637,143.89,143.88,8.50444365]
[1750343773197,29.17357015,143.89,143.88,15.45467995]
[1750343773409,24.00347637,143.89,143.88,15.45467995]
[1750343773711,29.17986155,143.89,143.88,15.45467995]
[1750343774011,24.00976777,143.89,143.88,15.45467995]
[1750343774187,29.17986155,143.89,143.88,8.50444365]
[1750343774387,24.00976777,143.89,143.88,8.50444365]
[1750343774614,29.17986155,143.89,143.88,15.45467995]
[1750343774792,24.00976777,143.89,143.88,15.45467995]
[1750343774999,29.17986155,143.89,143.88,15.45467995]
[1750343775228,12.68592281,143.89,143.88,8.50444365]
[1750343775388,29.1801016,143.89,143.88,8.50444365]
[1750343775589,24.01000782,143.89,143.88,8.50444365]
[1750343775790,24.01000782,143.89,143.88,15.45467995]
[1750343775791,10.0998924,143.89,143.88,15.45467995]
[1750343776013,10.10040846,143.89,143.88,15.45467995]
[1750343776408,4.92834763,143.89,143.88,15.45467995]
[1750343776713,21.42521832,143.89,143.88,15.45467995]
[1750343776914,29.18413083,143.89,143.88,15.45467995]
[1750343777104,24.01216668,143.89,143.88,15.45467995]
[1750343777420,29.18413083,143.89,143.88,15.45467995]
[1750343777600,24.01216668,143.89,143.88,15.45467995]
[1750343777809,29.18413083,143.89,143.88,15.45467995]
[1750343778004,24.01216668,143.89,143.88,15.45467995]
[1750343778226,29.18413083,143.89,143.88,15.45467995]
[1750343778515,24.01216668,143.89,143.88,15.45467995]
[1750343778706,29.18413083,143.89,143.88,15.45467995]
[1750343778899,24.01216668,143.89,143.88,15.45467995]
[1750343779105,29.18413083,143.89,143.88,8.50444365]
[1750343779317,24.01216668,143.89,143.88,8.50444365]
[1750343779497,29.18413083,143.89,143.88,8.50444365]
[1750343779692,24.01696654,143.89,143.88,15.45467995]
[1750343779900,29.18893069,143.89,143.88,15.45467995]
[1750343780124,24.01696654,143.89,143.88,15.45467995]
[1750343780307,29.18893069,143.89,143.88,15.45467995]
[1750343780495,24.01696654,143.89,143.88,8.50444365]
[1750343780697,29.18893069,143.89,143.88,8.50444365]
[1750343782113,24.2557832,143.89,143.88,8.50444365]
[1750343782295,29.19373768,143.89,143.88,8.50444365]
[1750343783311,47.84338654,143.89,143.88,8.50444365]
[1750343784012,80.79313982,143.89,143.88,8.50444365]
[1750343784209,89.85138888,143.89,143.88,8.50444365]
[1750343784801,89.85138888,143.89,143.88,3.28721898]
[1750343785622,89.85766615,143.89,143.88,3.28721898]
[1750343787997,36.52461417,143.89,143.88,3.28721898]
[1750343788526,47.76710493,143.89,143.88,3.28721898]
[1750343790353,54.71685821,143.89,143.88,3.28721898]
[1750343790740,83.35685821,143.89,143.88,3.28721898]
[1750343790943,83.3605948,143.89,143.88,3.28721898]
[1750343791551,83.3602732,143.89,143.88,3.28721898]
[1750343791751,76.41051992,143.89,143.88,3.28721898]
[1750343792949,35.14545797,143.89,143.88,3.28721898]
[1750343794053,40.32817228,143.89,143.88,3.28721898]
[1750343795057,40.3282867,143.89,143.88,3.28721898]
[1750343800046,47.27803998,143.89,143.88,3.28721898]
[1750343800649,47.27673088,143.89,143.88,3.28721898]
[1750343801044,40.3269776,143.89,143.88,3.28721898]
[1750343802063,35.14545797,143.89,143.88,3.28721898]
[1750343802464,61.14545797,143.89,143.88,3.28721898]
[1750343803155,61.14545797,143.89,143.88,10.23745528]
[1750343803465,5.17196415,143.89,143.88,10.23745528]
[1750343803839,6.45911159,143.93,143.88,21.56130024]
[1750343803840,5.17196415,143.92,143.88,21.56130024]
[1750343804056,5.17196415,143.91,143.89,11.32384496]
[1750343804254,6.45911159,143.95,143.9,11.32384496]
[1750343804255,5.17196415,143.92,143.9,11.32384496]
[1750343804456,5.18180546,143.94,143.91,11.32384496]
[1750343804653,5.18180546,143.93,143.91,11.32384496]
[1750343804847,37.32384496,143.94,143.9,11.32384496]
[1750343805054,5.1818789,143.93,143.9,11.32384496]
[1750343805253,5.17977642,143.93,143.91,6.94878743]
[1750343805475,16.50362138,143.93,143.9,6.94910268]
[1750343805672,5.17977642,143.92,143.9,6.94910268]
[1750343805853,32.947466,143.94,143.88,14.61106394]
[1750343805854,16.50362138,143.91,143.89,6.94965934]
[1750343806056,11.32384496,143.91,143.89,6.94965934]
[1750343806253,11.32384496,143.9,143.88,10.23732772]
[1750343806447,11.32384496,143.9,143.88,3.28721898]
[1750343806654,16.50049401,143.9,143.88,10.23730584]
[1750343806865,11.32384496,143.89,143.88,3.28721898]
[1750343807374,16.49745086,143.89,143.88,3.28721898]
[1750343807676,11.32384496,143.89,143.88,3.28721898]
[1750343807900,16.49745086,143.89,143.88,3.28721898]
[1750343808044,11.32384496,143.89,143.88,3.28721898]
[1750343808247,16.49745086,143.89,143.88,3.28721898]
[1750343808476,11.32384496,143.89,143.88,3.28721898]
[1750343808781,16.49745086,143.89,143.88,3.28721898]
[1750343808992,11.32384496,143.89,143.88,3.28721898]
[1750343809150,16.49745086,143.89,143.88,3.28721898]
[1750343809468,35.14709972,143.89,143.88,3.28721898]
[1750343810969,61.14709972,143.89,143.88,3.28721898]
[1750343813358,68.59900866,143.89,143.88,10.23745528]
[1750343813674,73.77932327,143.89,143.88,3.28721898]
[1750343815888,73.77903378,143.89,143.88,3.28721898]
[1750343816073,73.78564189,143.89,143.88,3.28721898]
[1750343816475,43.81399219,143.89,143.88,10.23745528]
[1750343816687,36.04384431,143.89,143.88,10.23745528]
[1750343817694,36.04421214,143.89,143.88,10.23745528]
[1750343818077,47.3680571,143.89,143.88,10.23745528]
[1750343819764,36.04421214,143.89,143.88,10.23745528]
[1750343820398,36.04529012,143.89,143.88,10.23745528]
[1750343821583,10.04529012,143.89,143.88,10.23745528]
[1750343822784,10.04760883,143.89,143.88,10.23745528]
[1750343823478,5.18212599,143.89,143.88,10.23745528]
[1750343824472,10.04534211,143.89,143.88,10.23745528]
[1750343825188,5.18212599,143.89,143.88,10.23745528]
[1750343825581,5.17541545,143.89,143.88,10.23745528]
[1750343825784,5.17515007,143.89,143.88,10.23745528]
[1750343825999,10.03373228,143.89,143.88,10.23745528]
[1750343826301,5.17515007,143.89,143.88,10.23745528]
[1750343827415,16.49899503,143.89,143.88,3.28721898]
[1750343827618,36.45150945,143.89,143.88,3.28721898]
[1750343827785,42.59532592,143.89,143.88,3.28721898]
[1750343827985,47.77535441,143.89,143.88,3.28721898]
[1750343828507,36.45150945,143.89,143.88,10.23745528]
[1750343828687,36.45354979,143.89,143.88,10.23745528]
[1750343829083,15.21588822,143.89,143.88,10.23745528]
[1750343829397,10.03585973,143.89,143.88,10.23745528]
[1750343830390,31.17888155,143.9,143.88,10.23745528]
[1750343830591,5.17888155,143.9,143.88,21.56130024]
[1750343830898,5.17911949,143.92,143.89,11.32384496]
[1750343831108,31.17911949,143.94,143.91,6.94878743]
[1750343831285,5.17911949,143.93,143.91,18.27263239]
[1750343831490,5.17911949,143.93,143.91,6.94878743]
[1750343831797,5.17911949,143.94,143.91,6.94878743]
[1750343832106,11.32384496,143.94,143.91,6.94878743]
[1750343832309,26.0,143.93,143.91,24.32075602]
[1750343833600,37.32384496,143.93,143.91,24.32075602]
[1750343834543,11.32384496,143.92,143.91,6.94878743]
[1750343835448,11.32384496,143.92,143.89,24.32408123]
[1750343836017,26.0,143.93,143.89,24.32408123]
[1750343836224,11.32384496,143.92,143.89,24.32408123]
[1750343836634,11.32384496,143.91,143.89,24.32408123]
[1750343837819,5.17881874,143.92,143.89,24.32408123]
[1750343838018,16.5026637,143.92,143.89,24.32408123]
[1750343838219,26.0,143.93,143.9,11.32384496]
[1750343838922,5.17881874,143.95,143.92,11.32384496]
[1750343839238,26.0,143.96,143.93,11.32384496]
[1750343839445,26.0,143.95,143.94,6.94733916]
[1750343839841,5.1764337,143.97,143.94,24.31568708]
[1750343840142,37.32384496,143.98,143.94,24.31568708]
[1750343840356,11.32384496,143.97,143.94,24.31568708]
[1750343840729,5.17686736,143.98,143.94,6.94733916]
[1750343840959,11.32384496,143.96,143.94,6.94733916]
[1750343841869,11.32384496,143.95,143.94,6.94733916]
[1750343842579,11.32384496,143.95,143.92,6.94830461]
[1750343842779,11.32384496,143.93,143.92,6.94830461]
[1750343843278,11.32384496,143.94,143.92,6.94830461]
[1750343843575,5.17686736,143.96,143.92,6.94830461]
[1750343843745,11.32384496,143.94,143.92,6.94830461]
[1750343845575,11.32384496,143.93,143.92,6.94830461]
[1750343846378,11.32384496,143.93,143.91,6.9485744]
[1750343846679,26.0,143.95,143.91,6.9485744]
[1750343846680,11.32384496,143.92,143.91,6.9485744]
[1750343847174,11.32384496,143.93,143.91,6.9485744]
[1750343847791,11.32384496,143.94,143.91,24.32054299]
[1750343847946,26.0,143.95,143.91,35.64438795]
[1750343847947,37.32384496,143.95,143.91,35.64438795]
[1750343848149,37.32384496,143.95,143.91,24.32054299]
[1750343848977,26.0,143.95,143.91,35.64438795]
[1750343849279,26.0,143.94,143.91,35.64438795]
[1750343849587,26.0,143.95,143.92,11.32384496]
[1750343849953,26.0,143.95,143.93,11.32384496]
[1750343850254,11.32384496,143.98,143.93,11.32384496]
[1750343850478,37.32384496,143.98,143.93,11.32384496]
[1750343850861,11.32384496,143.98,143.93,24.31737649]
[1750343851077,11.32384496,143.97,143.93,35.64122145]
[1750343851259,26.0,143.97,143.93,35.64122145]
[1750343851760,37.32384496,143.97,143.93,35.64122145]
[1750343851963,26.0,143.97,143.93,35.64122145]
[1750343852166,18.64964886,144.02,143.94,11.32384496]
[1750343852362,11.32384496,143.98,143.94,11.32384496]
[1750343852568,11.32384496,143.98,143.93,35.64122145]
[1750343852771,11.32384496,143.98,143.94,11.32384496]
[1750343853276,11.32384496,143.98,143.95,24.3139979]
[1750343854284,11.32384496,143.99,143.95,35.63784286]
[1750343854574,11.32384496,143.98,143.95,24.3139979]
[1750343854953,11.32384496,143.97,143.95,24.3139979]
[1750343855154,11.32384496,143.97,143.95,6.94685654]
[1750343855479,11.32384496,143.97,143.94,6.94733916]
[1750343855679,11.32384496,143.96,143.94,6.94733916]
[1750343856560,11.32384496,143.97,143.94,6.94733916]
[1750343856771,31.16747134,143.99,143.94,6.94733916]
[1750343856772,11.32384496,143.96,143.94,6.94733916]
[1750343857998,18.64964886,143.98,143.94,6.94733916]
[1750343858171,11.32384496,143.97,143.94,6.94733916]
[1750343860473,31.16282892,143.99,143.94,6.94733916]
[1750343860977,11.32384496,143.97,143.94,6.94733916]
[1750343863476,31.16282892,143.99,143.94,24.31568708]
[1750343863691,26.0,143.99,143.94,35.63953204]
[1750343863874,37.32384496,143.99,143.94,35.63953204]
[1750343864074,37.32384496,143.99,143.95,11.32384496]
[1750343864324,26.0,143.99,143.96,11.32384496]
[1750343864735,16.49151945,144.0,143.96,11.32384496]
[1750343864915,37.32384496,144.0,143.96,11.32384496]
[1750343866123,37.32384496,144.0,143.97,6.9458915]
[1750343866327,26.0,144.0,143.97,6.9458915]
[1750343866526,26.0,144.0,143.98,11.32384496]
[1750343867026,26.0,144.0,143.97,24.31062026]
[1750343867214,26.0,144.0,143.97,35.63446522]
[1750343869725,11.32384496,143.99,143.97,6.9458915]
[1750343870140,26.0,144.0,143.97,6.9458915]
[1750343870444,11.32384496,143.99,143.97,6.9458915]
[1750343872841,37.32384496,144.0,143.97,6.9458915]
[1750343874265,26.0,144.0,143.97,18.26973646]
[1750343874433,26.0,144.0,143.98,11.32384496]
[1750343875143,26.0,144.0,143.99,6.94492673]
[1750343879656,26.0,144.0,143.98,6.94540908]
[1750343880340,16.49766303,144.03,143.99,11.32384496]
[1750343880539,16.49766303,144.03,143.98,24.30893179]
[1750343880540,11.32384496,144.04,144.0,11.32384496]
[1750343880729,25.90356929,144.05,144.01,11.32384496]
[1750343880926,9.40590626,144.05,144.02,11.32384496]
[1750343881130,9.40590626,144.05,144.03,11.32384496]
[1750343881332,5.17381807,144.07,143.99,105.64384496]
[1750343881533,21.38386354,144.06,144.02,11.32384496]
[1750343881739,21.38386354,144.05,144.01,11.32384496]
[1750343881939,37.32384496,144.07,144.03,11.32384496]
[1750343882236,10.06268544,144.06,144.03,11.32384496]
[1750343882532,4.88832075,144.06,144.04,11.32384496]
[1750343882939,21.3905952,144.05,144.0,24.30555555]
[1750343883162,21.38988049,144.04,144.0,24.30555555]
[1750343883352,16.2105432,144.04,144.0,35.62940051]
[1750343883556,16.20989389,144.04,144.0,35.62940051]
[1750343883867,11.32384496,144.04,144.0,35.62940051]
[1750343884160,5.17715243,144.03,144.0,35.62940051]
[1750343884565,5.17715243,144.03,144.0,24.30555555]
[1750343884748,16.20856767,144.04,144.0,24.30555555]
[1750343884952,16.49896495,144.03,144.0,24.30555555]
[1750343885150,11.32384496,144.03,144.0,24.30555555]
[1750343885557,16.49739139,144.03,144.0,24.30555555]
[1750343885744,11.32384496,144.03,144.0,24.30555555]
[1750343885949,10.05523175,144.04,144.0,24.30555555]
[1750343886147,5.17354289,144.03,144.0,35.62940051]
[1750343886350,5.17294351,144.03,144.0,35.62940051]
[1750343886571,16.49678847,144.03,144.0,24.30555555]
[1750343887566,11.32384496,144.03,144.0,24.30555555]
[1750343888069,7.46729688,144.05,144.0,24.30555555]
[1750343888362,11.32384496,144.03,144.0,24.30555555]
[1750343888563,11.32384496,144.01,144.0,6.94444444]
[1750343888763,16.49541014,144.02,144.0,6.94444444]
[1750343888964,7.45496388,144.04,144.0,6.94444444]
[1750343889166,16.19325965,144.03,144.0,6.94444444]
[1750343889351,11.32384496,144.03,144.0,6.94444444]
[1750343889553,11.32384496,144.03,144.0,24.30555555]
[1750343889754,4.87013426,144.03,144.0,35.62940051]
[1750343889951,4.87013426,144.05,144.01,11.32384496]
[1750343890263,5.17162141,144.05,144.02,11.32384496]
[1750343890465,5.17162141,144.05,144.03,11.32384496]
[1750343890770,4.87013426,144.06,144.0,138.50555555]
[1750343890771,5.17324937,144.06,144.0,138.50555555]
[1750343891075,12.62953616,144.08,144.05,11.32384496]
[1750343891277,10.04320655,144.07,144.05,11.32384496]
[1750343891449,5.17324937,144.06,144.05,11.32384496]
[1750343891770,5.17324937,144.06,144.05,18.26587897]
[1750343891964,5.17324937,144.06,144.05,6.94203401]
[1750343891965,21.36705151,144.06,144.05,6.94203401]
[1750343892171,16.49709433,144.06,144.05,6.94203401]
[1750343892369,5.17324937,144.06,144.05,6.94203401]
[1750343893388,16.49709433,144.06,144.05,6.94203401]
[1750343893855,10.05061622,144.06,144.02,24.30218025]
[1750343894062,16.49709433,144.05,144.02,24.30218025]
[1750343894257,11.32384496,144.05,144.02,24.30218025]
[1750343895547,16.20237909,144.06,144.02,35.62602521]
[1750343895747,5.17699459,144.05,144.03,11.32384496]
[1750343895965,16.20091963,144.06,144.02,28.68254514]
[1750343896165,11.32384496,144.04,144.02,17.35870018]
[1750343896547,10.0517134,144.05,144.02,17.35870018]
[1750343896751,5.17463873,144.04,144.02,17.35870018]